fUSD/lending_fUSD_20260224
["ID","MTS","AMOUNT","RATE_DAILY","PERIOD"]
[406533358,1771920645230,-512.1,0.00013698,2]
[406533359,1771920645240,-512.1,0.00013698,2]
[406533360,1771920645249,-512.1,0.00013698,2]
[406533361,1771920645259,-512.1,0.00013698,2]
[406533362,1771920645268,-500.0,0.00013698,2]
[406533363,1771920645277,-500.0,0.00013698,2]
[406533364,1771920645286,-500.0,0.00013698,2]
[406533365,1771920645295,-500.0,0.00013698,2]
[406533366,1771920645304,-501.58967205,0.00013698,2]
[406533367,1771920645313,-500.0,0.00013698,2]
[406533368,1771920645322,-500.0,0.00013698,2]
[406533369,1771920645331,-500.0,0.00013698,2]
[406533370,1771920645340,-500.0,0.00013698,2]
[406533371,1771920645350,-500.0,0.00013698,2]
[406533372,1771920645359,-500.0,0.00013698,2]
[406533373,1771920645369,-500.0,0.00013698,2]
[406533374,1771920645379,-500.0,0.00013698,2]
[406533375,1771920645388,-500.0,0.00013698,2]
[406533376,1771920645397,-500.0,0.00013698,2]
[406533377,1771920645406,-500.0,0.00013698,2]
[406533378,1771920645416,-500.0,0.00013698,2]
[406533379,1771920645425,-500.0,0.00013698,2]
[406533380,1771920645433,-500.0,0.00013698,2]
[406533381,1771920645442,-500.0,0.00013698,2]
[406533382,1771920645451,-500.0,0.00013698,2]
[406533383,1771920645460,-500.0,0.00013698,2]
[406533384,1771920645470,-500.0,0.00013698,2]
[406533385,1771920645479,-500.0,0.00013698,2]
[406533386,1771920645489,-500.0,0.00013698,2]
[406533387,1771920645500,-391.17971065,0.00013698,2]
[406533388,1771920645509,-514.97195478,0.00013698,2]
[406533389,1771920645518,-500.0,0.00013698,2]
[406533390,1771920645528,-500.0,0.00013698,2]
[406533391,1771920645538,-500.0,0.00013698,2]
[406533392,1771920645547,-500.0,0.00013698,2]
[406533393,1771920645556,-500.0,0.00013698,2]
[406533394,1771920645567,-500.0,0.00013698,2]
[406533395,1771920645576,-500.0,0.00013698,2]
[406533396,1771920645585,-500.0,0.00013698,2]
[406533397,1771920645594,-500.0,0.00013698,2]
[406533398,1771920645603,-500.0,0.00013698,2]
[406533399,1771920645612,-605.01315196,0.00013698,2]
[406533400,1771920645621,-355.42926723,0.00013698,2]
[406533401,1771920645632,-505.3008994,0.00013698,2]
[406533402,1771920645641,-16296.14,0.00013699,2]
[406533403,1771920645650,-501.16839178,0.00013699,2]
[406533404,1771920645659,-500.0,0.00013699,2]
[406533405,1771920645668,-504.28462668,0.00013699,2]
[406533406,1771920645677,-500.0,0.00013699,2]
[406533407,1771920645686,-500.0,0.00013699,2]
[406533408,1771920645695,-503.3459029,0.00013699,2]
[406533409,1771920645703,-509.0327441,0.00013699,2]
[406533410,1771920645712,-162.13031906,0.00013699,2]
[406533411,1771920645721,-500.0,0.00013699,2]
[406533412,1771920645730,-500.0,0.00013699,2]
[406533413,1771920645740,-503.99220136,0.00013699,2]
[406533414,1771920645749,-500.0,0.00013699,2]
[406533415,1771920645758,-164.16786887,0.00013699,2]
[406533416,1771920645767,-500.0,0.00013699,2]
[406533417,1771920645776,-504.16390705,0.00013699,2]
[406533418,1771920645784,-511.18624479,0.00013699,2]
[406533419,1771920645793,-500.0,0.00013699,2]
[406533420,1771920645802,-500.0,0.00013699,2]
[406533421,1771920645811,-500.0,0.00013699,2]
[406533422,1771920645819,-500.0,0.00013699,2]
[406533423,1771920645829,-501.93759306,0.00013699,2]
[406533424,1771920645838,-599.206441,0.00013699,2]
[406533425,1771920645847,-170.38160206,0.00013699,2]
[406533426,1771920645856,-209.6165406,0.00013699,2]
[406533427,1771920645865,-500.0,0.00013699,2]
[406533428,1771920645875,-304.38005979,0.00013699,2]
[406533429,1771920645884,-168.61283304,0.00013699,2]
[406533430,1771920645893,-500.0,0.00013699,2]
[406533431,1771920645901,-500.0,0.00013699,2]
[406533432,1771920645911,-503.60394883,0.00013699,2]
[406533433,1771920645921,-487.94127816,0.00013699,2]
[406533434,1771920645930,-500.0,0.00013699,2]
[406533435,1771920645939,-501.44667058,0.00013699,2]
[406533436,1771920645948,-500.0,0.00013699,2]
[406533437,1771920645957,-778.04,0.00013699,2]
[406533438,1771920645966,-215.42973367,0.000137,2]
[406533439,1771920645975,-150.0,0.0001378,2]
[406533440,1771920645984,-150.0,0.0001388,2]
[406533441,1771920645993,-774.32438509,0.00013905,2]
[406533442,1771920646002,-666.0,0.00013914,2]
[406533443,1771920646011,-583118.1413791,0.00013915,2]
[406533444,1771920646019,-500.0,0.00013917,2]
[406533445,1771920646028,-778.04,0.00013973,2]
[406533446,1771920646037,-3927.32910296,0.00014002,2]
[406533447,1771920646047,-29776.69887527,0.00014066,2]
[406533448,1771920646056,-206.3068592,0.00014116,2]
[406533449,1771920646065,-666.0,0.00014126,2]
[406533450,1771920646074,-26657.44874385,0.00014127,2]
[406533451,1771920646083,-150.0,0.00014147,2]
[406533452,1771920646093,-1482.49680288,0.00014168,2]
[406533453,1771920646102,-1500.0,0.00014168,2]
[406533454,1771920646111,-1500.0,0.00014168,2]
[406533455,1771920646120,-1027.71923747,0.00014168,2]
[406533456,1771920646133,-1500.0,0.00014168,2]
[406533457,1771920646142,-1500.0,0.00014168,2]
[406533458,1771920646151,-1500.0,0.00014168,2]
[406533459,1771920646161,-502.25561136,0.00014168,2]
[406533460,1771920646171,-500.0,0.00014191,2]
[406533461,1771920646180,-600.0,0.00014246,2]
[406533462,1771920646190,-1028.84101903,0.00014247,2]
[406533463,1771920646200,-1000.0,0.00014247,2]
[406533464,1771920646210,-500.0,0.00014247,2]
[406533465,1771920646220,-501.53221813,0.00014247,2]
[406533466,1771920646229,-483.17728486,0.00014247,2]
[406533467,1771920646239,-1000.0,0.00014247,2]
[406533468,1771920646248,-1092.86766843,0.00014247,2]
[406533469,1771920646258,-436.95947364,0.00014247,2]
[406533470,1771920646267,-1000.0,0.00014247,2]
[406533471,1771920646276,-1000.0,0.00014247,2]
[406533472,1771920646285,-583.60061699,0.00014247,2]
[406533473,1771920646295,-1000.0,0.00014247,2]
[406533474,1771920646304,-1000.0,0.00014247,2]
[406533475,1771920646313,-1000.0,0.00014247,2]
[406533476,1771920646323,-243.69912151,0.00014247,2]
[406533477,1771920646502,-693.71551848,0.00014247,2]
[406533478,1771920646512,-811.21,0.00014247,2]
[406533479,1771920646521,-173.87087054,0.00014361,2]
[406533480,1771920646531,-160.0,0.00014361,2]
[406533481,1771920646541,-500.0,0.00014465,2]
[406533482,1771920646551,-9579.65140379,0.0001449,2]
[406533483,1771920646559,-747.43571158,0.0001449,2]
[406533484,1771920646570,-482.622583,0.00014503,2]
[406533485,1771920646579,-1600.0,0.00014504,2]
[406533486,1771920646588,-278.97783528,0.00014505,2]
[406533487,1771920646598,-736.0,0.0001454,2]
[406533488,1771920646607,-151.0,0.00014634,2]
[406533489,1771920646617,-151.0,0.00014634,2]
[406533490,1771920646626,-151.0,0.00014634,2]
[406533491,1771920646635,-666.0,0.00014639,2]
[406533492,1771920646645,-174.61919141,0.0001464,2]
[406533493,1771920646654,-500.0,0.0001464,2]
[406533494,1771920646663,-500.0,0.0001464,2]
[406533495,1771920646672,-500.0,0.0001464,2]
[406533496,1771920646681,-500.0,0.0001464,2]
[406533497,1771920646690,-500.0,0.0001464,2]
[406533498,1771920646700,-500.0,0.0001464,2]
[406533499,1771920646709,-500.0,0.0001464,2]
[406533500,1771920646718,-500.0,0.0001464,2]
[406533501,1771920646728,-500.0,0.0001464,2]
[406533502,1771920646737,-500.0,0.0001464,2]
[406533503,1771920646747,-500.0,0.0001464,2]
[406533504,1771920646756,-500.0,0.0001464,2]
[406533505,1771920646766,-250.0,0.0001464,2]
[406533506,1771920646775,-500.0,0.0001464,2]
[406533507,1771920646785,-500.0,0.0001464,2]
[406533508,1771920646794,-250.0,0.0001464,2]
[406533509,1771920646804,-500.0,0.0001464,2]
[406533510,1771920646813,-500.0,0.0001464,2]
[406533511,1771920646823,-250.0,0.0001464,2]
[406533512,1771920646832,-500.0,0.0001464,2]
[406533513,1771920646841,-257.5744131,0.0001464,2]
[406533514,1771920646850,-500.0,0.0001464,2]
[406533515,1771920646859,-500.0,0.0001464,2]
[406533516,1771920646869,-500.0,0.0001464,2]
[406533517,1771920646879,-500.0,0.0001464,2]
[406533518,1771920646888,-500.0,0.0001464,2]
[406533519,1771920646898,-151.0,0.0001464,2]
[406533520,1771920646907,-156.587,0.0001464,2]
[406533521,1771920646916,-162.380719,0.0001464,2]
[406533522,1771920646925,-159.89501112,0.0001464,2]
[406533523,1771920646934,-250.0,0.0001464,2]
[406533524,1771920646944,-250.0,0.0001464,2]
[406533525,1771920646953,-250.0,0.0001464,2]
[406533526,1771920646962,-743.50770149,0.0001464,2]
[406533527,1771920646972,-304.87117292,0.0001464,2]
[406533528,1771920646981,-693.3919763,0.0001464,2]
[406533529,1771920646991,-500.0,0.0001464,2]
[406533530,1771920647000,-500.0,0.0001464,2]
[406533531,1771920647009,-500.0,0.0001464,2]
[406533532,1771920647018,-500.0,0.0001464,2]
[406533533,1771920647027,-500.0,0.0001464,2]
[406533534,1771920647037,-500.0,0.0001464,2]
[406533535,1771920647047,-500.0,0.0001464,2]
[406533536,1771920647056,-592.26070942,0.0001464,2]
[406533537,1771920647065,-151.0,0.0001464,2]
[406533538,1771920647075,-250.0,0.0001464,2]
[406533539,1771920647084,-250.0,0.0001464,2]
[406533540,1771920647094,-719.04747942,0.00014695,2]
[406533541,1771920647104,-151.0,0.00014695,2]
[406533542,1771920647113,-823.0,0.00014697,2]
[406533543,1771920647122,-276.82336401,0.00014716,2]
[406533544,1771920647132,-2000.0,0.00014716,2]
[406533545,1771920647141,-2000.0,0.00014716,2]
[406533546,1771920647151,-1003.87713345,0.00014716,2]
[406533547,1771920647160,-2000.0,0.00014716,2]
[406533548,1771920647168,-1000.0,0.00014738,2]
[406533549,1771920647178,-500.0,0.00014739,2]
[406533550,1771920647187,-3292.0,0.00014745,2]
[406533551,1771920647197,-745.65223616,0.0001475,2]
[406533552,1771920647206,-151.0,0.0001475,2]
[406533553,1771920647215,-513.23,0.00014758,2]
[406533554,1771920647224,-371.35234656,0.00014767,2]
[406533555,1771920647234,-1503.05357398,0.00014795,2]
[406533556,1771920647243,-602.53164684,0.00014795,2]
[406533557,1771920647252,-1390.05507377,0.00014795,2]
[406533558,1771920647261,-1500.0,0.00014795,2]
[406533559,1771920647271,-1500.0,0.00014795,2]
[406533560,1771920647280,-1500.0,0.00014795,2]
[406533561,1771920647290,-1500.0,0.00014795,2]
[406533562,1771920647300,-773.2413689,0.00014805,2]
[406533563,1771920647310,-151.0,0.00014805,2]
[406533564,1771920647319,-29776.69887527,0.00014813,2]
[406533565,1771920647328,-1847.79,0.00014853,2]
[406533566,1771920647338,-801.85129955,0.0001486,2]
[406533567,1771920647347,-151.0,0.0001486,2]
[406533568,1771920647357,-482.622583,0.00014866,2]
[406533569,1771920647366,-815.58401786,0.00014881,2]
[406533570,1771920647376,-26657.44874385,0.00014882,2]
[406533571,1771920647387,-176.18400318,0.000149,2]
[406533572,1771920647396,-456.85459131,0.00014903,2]
[406533573,1771920647405,-500.0,0.00014903,2]
[406533574,1771920647415,-500.0,0.00014903,2]
[406533575,1771920647424,-500.0,0.00014903,2]
[406533576,1771920647434,-581.29,0.00014903,2]
[406533577,1771920647443,-522.40502764,0.00014903,2]
[406533578,1771920647452,-154.57529988,0.00014915,2]
[406533579,1771920647462,-1000.0,0.00014958,2]
[406533580,1771920647471,-3927.32910296,0.00014977,2]
[406533581,1771920647480,-500.0,0.00015013,2]
[406533582,1771920647491,-900.0,0.00015068,2]
[406533583,1771920647501,-514.0,0.00015101,2]
[406533584,1771920647510,-500.0,0.00015119,2]
[406533585,1771920647519,-620.42088911,0.00015119,2]
[406533586,1771920647529,-506.35812357,0.00015119,2]
[406533587,1771920647538,-500.0,0.00015119,2]
[406533588,1771920647548,-581.29,0.00015119,2]
[406533589,1771920647557,-181.08010149,0.00015188,2]
[406533590,1771920647570,-771.01748645,0.00015188,2]
[406533591,1771920647579,-482.622583,0.00015228,2]
[406533592,1771920647589,-427.76795387,0.00015238,2]
[406533593,1771920647597,-1031.27835784,0.00015264,2]
[406533594,1771920647607,-2500.0,0.00015264,2]
[406533595,1771920647616,-2500.0,0.00015264,2]
[406533596,1771920647626,-500.0,0.00015287,2]
[406533597,1771920647636,-669.96409274,0.00015315,2]
[406533598,1771920647645,-583118.1413791,0.00015316,2]
[406533599,1771920647655,-2000.0,0.00015342,2]
[406533600,1771920647664,-932.65135931,0.00015342,2]
[406533601,1771920647674,-755.82806005,0.00015342,2]
[406533602,1771920647683,-600.0,0.00015514,2]
[406533603,1771920647692,-29776.69887527,0.0001556,2]
[406533604,1771920647703,-500.0,0.00015561,2]
[406533605,1771920647714,-482.622583,0.00015591,2]
[406533606,1771920647724,-278.97783528,0.00015636,2]
[406533607,1771920647733,-26657.44874385,0.00015636,2]
[406533608,1771920647744,-271.56778661,0.0001568,7]
[406533609,1771920647754,-187.78006525,0.00015736,2]
[406533610,1771920647763,-799.54513345,0.00015736,2]
[406533611,1771920647773,-288.85860285,0.00015759,2]
[406533612,1771920647782,-2725.04997657,0.00015763,2]
[406533613,1771920647792,-3000.0,0.00015812,2]
[406533614,1771920647802,-2377.20909449,0.00015812,2]
[406533615,1771920647811,-1600.0,0.00015822,2]
[406533616,1771920647820,-500.0,0.00015835,2]
[406533617,1771920647830,-1200.21212036,0.0001589,2]
[406533618,1771920647840,-150.0,0.000159,2]
[406533620,1771920647849,-150.0,0.000159,2]
[406533621,1771920647858,-150.0,0.000159,2]
[406533622,1771920647868,-150.0,0.000159,2]
[406533623,1771920647880,-150.0,0.000159,2]
[406533624,1771920647889,-454.1749961,0.00015904,2]
[406533625,1771920647898,-1252.0,0.00015907,2]
[406533626,1771920647907,-3927.32910296,0.00015951,2]
[406533627,1771920647917,-482.622583,0.00015953,2]
[406533628,1771920647926,-1110.45997507,0.0001596,2]
[406533629,1771920647935,-151.0,0.00015974,2]
[406533630,1771920647945,-151.0,0.00015974,2]
[406533631,1771920647954,-470.58,0.00015999,2]
[406533632,1771920647965,-470.58,0.00015999,2]
[406533633,1771920647975,-380.32235674,0.00016,2]
[406533634,1771920647984,-454.1749961,0.00016062,2]
[406533635,1771920647994,-513.23,0.00016092,2]
[406533636,1771920648003,-380.32235674,0.000161,2]
[406533637,1771920648012,-291.85083956,0.00016108,2]
[406533638,1771920648022,-151.0,0.00016116,2]
[406533639,1771920648031,-151.0,0.00016116,2]
[406533640,1771920648041,-151.0,0.00016116,2]
[406533641,1771920648050,-275.352039,0.00016116,2]
[406533642,1771920648060,-6562.937436,0.00016124,7]
[406533643,1771920648069,-1152.0,0.00016149,2]
[406533644,1771920648079,-150.597,0.00016149,2]
[406533645,1771920648089,-1277.0,0.00016149,2]
[406533646,1771920648099,-1218.319,0.00016187,2]
[406533647,1771920648109,-5980.0,0.00016187,2]
[406533648,1771920648119,-413.0,0.00016187,2]
[406533649,1771920648130,-920.0,0.00016187,2]
[406533650,1771920648139,-380.32235674,0.000162,2]
[406533651,1771920648149,-4609.0,0.00016219,2]
[406533652,1771920648160,-454.1749961,0.00016219,2]
[406533653,1771920648170,-194.72792766,0.00016284,2]
[406533654,1771920648180,-829.12830338,0.00016284,2]
[406533655,1771920648189,-29776.69887527,0.00016306,2]
[406533656,1771920648199,-482.622583,0.00016316,2]
[406533657,1771920648208,-500.0,0.0001636,2]
[406533658,1771920648217,-512.1,0.0001636,2]
[406533659,1771920648227,-3500.0,0.0001636,2]
[406533660,1771920648237,-155.700849,0.00016371,2]
[406533661,1771920648246,-150.198,0.00016371,2]
[406533662,1771920648255,-267.735,0.00016371,2]
[406533663,1771920648265,-1040.0,0.00016371,2]
[406533664,1771920648274,-618.0,0.00016371,2]
[406533665,1771920648284,-3496.0,0.00016371,2]
[406533666,1771920648293,-1362.398,0.00016371,2]
[406533667,1771920648303,-412.965287,0.00016377,7]
[406533668,1771920648312,-26657.44874385,0.00016391,2]
[406533669,1771920648322,-327.0,0.00016416,2]
[406533670,1771920648331,-327.0,0.00016421,2]
[406533671,1771920648341,-884.36,0.00016438,2]
[406533672,1771920648350,-150.73989367,0.00016438,2]
[406533673,1771920648359,-900.0,0.00016438,2]
[406533674,1771920648369,-151.0,0.00016438,2]
[406533675,1771920648381,-500.0,0.00016446,2]
[406533676,1771920648390,-581.29,0.00016446,2]
[406533677,1771920648400,-1000.0,0.00016454,2]
[406533678,1771920648409,-327.0,0.00016591,2]
[406533679,1771920648419,-327.0,0.00016675,2]
[406533680,1771920648428,-482.622583,0.00016679,2]
[406533681,1771920648437,-327.0,0.00016709,2]
[406533682,1771920648446,-278.97783528,0.00016768,2]
[406533683,1771920648455,-327.0,0.00016781,2]
[406533684,1771920648465,-470.58,0.00016799,2]
[406533685,1771920648474,-470.58,0.00016799,2]
[406533687,1771920648486,-201.93286099,0.00016832,2]
[406533689,1771920648498,-859.80605061,0.00016832,2]
[406533691,1771920648507,-327.0,0.00016881,2]
[406533692,1771920648517,-479.97,0.00016893,2]
[406533693,1771920648527,-327.0,0.00016895,2]
[406533694,1771920648537,-1120.70979822,0.00016908,2]
[406533695,1771920648546,-264.0,0.00016911,2]
[406533696,1771920648554,-3927.32910296,0.00016926,2]
[406533697,1771920648566,-327.0,0.00016943,2]
[406533698,1771920648575,-6623.03809716,0.00016992,2]
[406533699,1771920648584,-500.0,0.00016999,2]
[406533700,1771920648593,-500.0,0.00016999,2]
[406533701,1771920648602,-500.0,0.00016999,2]
[406533702,1771920648611,-617.72986232,0.00016999,2]
[406533703,1771920648620,-581.29,0.00016999,2]
[406533704,1771920648633,-581.29,0.00016999,2]
[406533705,1771920648642,-581.29,0.00016999,2]
[406533706,1771920648652,-581.29,0.00016999,2]
[406533707,1771920648661,-581.43544103,0.00016999,2]
[406533708,1771920648670,-783.34429,0.00017,2]
[406533709,1771920648679,-479.97,0.00017005,2]
[406533710,1771920648689,-264.0,0.00017008,2]
[406533711,1771920648699,-264.0,0.00017012,2]
[406533712,1771920648708,-264.0,0.0001704,2]
[406533713,1771920648718,-482.622583,0.00017041,2]
[406533714,1771920648728,-29776.69887527,0.00017053,2]
[406533715,1771920648738,-327.0,0.00017065,2]
[406533716,1771920648748,-1613.931096,0.000171,2]
[406533717,1771920648757,-303.0,0.000171,2]
[406533718,1771920648767,-479.97,0.00017117,2]
[406533719,1771920648777,-507.72635797,0.0001712,5]
[406533720,1771920648786,-514.0,0.00017129,3]
[406533721,1771920648796,-309.11765045,0.00017144,2]
[406533722,1771920648805,-26657.44874385,0.00017145,2]
[406533723,1771920648814,-151.0,0.00017164,2]
[406533724,1771920648823,-151.0,0.00017164,2]
[406533725,1771920648833,-151.0,0.00017164,2]
[406533726,1771920648842,-264.0,0.00017229,2]
[406533727,1771920648851,-559.0,0.00017236,2]
[406533728,1771920648860,-258.0,0.00017236,2]
[406533729,1771920648870,-264.0,0.00017261,2]
[406533730,1771920648881,-159.62910539,0.00017278,2]
[406533731,1771920648891,-209.40437684,0.0001738,2]
[406533732,1771920648900,-891.61887448,0.0001738,2]
[406533733,1771920648909,-350.0,0.00017386,2]
[406533734,1771920648919,-482.622583,0.00017404,2]
[406533735,1771920648928,-2129.0,0.00017406,2]
[406533736,1771920648937,-748.0,0.0001746,2]
[406533737,1771920648947,-150.0,0.0001746,2]
[406533738,1771920648956,-298.0,0.0001746,2]
[406533739,1771920648965,-264.0,0.00017592,2]
[406533740,1771920648974,-350.0,0.00017608,2]
[406533741,1771920648983,-2332.75047016,0.0001764,2]
[406533742,1771920648992,-342.15,0.00017645,2]
[406533743,1771920649001,-264.0,0.00017741,2]
[406533744,1771920649011,-1613.0,0.00017744,2]
[406533745,1771920649020,-482.622583,0.00017766,2]
[406533746,1771920649029,-543.0,0.00017769,2]
[406533747,1771920649038,-29776.69887527,0.000178,2]
[406533748,1771920649047,-300.0,0.00017807,2]
[406533749,1771920649056,-151.0,0.00017808,2]
[406533750,1771920649065,-151.0,0.00017808,2]
[406533751,1771920649074,-949.41679849,0.00017808,2]
[406533752,1771920649084,-949.41679849,0.00017808,2]
[406533753,1771920649093,-949.41679849,0.00017808,2]
[406533754,1771920649102,-949.41679849,0.00017808,2]
[406533755,1771920649111,-949.41679849,0.00017808,2]
[406533756,1771920649120,-949.41679849,0.00017808,2]
[406533757,1771920649130,-949.41679849,0.00017808,2]
[406533758,1771920649139,-949.41679849,0.00017808,2]
[406533759,1771920649148,-949.41679849,0.00017808,2]
[406533760,1771920649158,-949.41679849,0.00017808,2]
[406533761,1771920649167,-949.41679849,0.00017808,2]
[406533762,1771920649176,-949.41679849,0.00017808,2]
[406533763,1771920649186,-949.41679849,0.00017808,2]
[406533764,1771920649195,-949.41679849,0.00017808,2]
[406533765,1771920649204,-1006.3818064,0.00017808,2]
[406533766,1771920649213,-1006.3818064,0.00017808,2]
[406533767,1771920649222,-1006.3818064,0.00017808,2]
[406533768,1771920649231,-1006.3818064,0.00017808,2]
[406533769,1771920649240,-1006.3818064,0.00017808,2]
[406533770,1771920649249,-1006.3818064,0.00017808,2]
[406533771,1771920649259,-1006.3818064,0.00017808,2]
[406533772,1771920649268,-1006.3818064,0.00017808,2]
[406533773,1771920649277,-1034.45456205,0.00017808,2]
[406533774,1771920649287,-1034.45456205,0.00017808,2]
[406533775,1771920649297,-1034.45456205,0.00017808,2]
[406533776,1771920649307,-1034.45456205,0.00017808,2]
[406533777,1771920649316,-1034.45456205,0.00017808,2]
[406533778,1771920649325,-800.0,0.00017808,2]
[406533779,1771920649335,-6979.23072247,0.0001783,2]
[406533780,1771920649345,-6453.0,0.00017841,2]
[406533781,1771920649354,-342.15,0.00017863,2]
[406533782,1771920649363,-300.0,0.00017899,2]
[406533783,1771920649372,-300.0,0.00017899,2]
[406533784,1771920649383,-25000.0,0.000179,3]
[406533785,1771920649392,-173.87087054,0.000179,3]
[406533786,1771920649402,-25000.0,0.000179,3]
[406533787,1771920649411,-278.97783528,0.000179,2]
[406533788,1771920649420,-493.164724,0.000179,2]
[406533789,1771920649429,-493.164724,0.000179,2]
[406533790,1771920649438,-493.164724,0.000179,2]
[406533791,1771920649446,-153.565388,0.000179,2]
[406533792,1771920649456,-493.164724,0.000179,2]
[406533793,1771920649464,-151.0,0.000179,2]
[406533794,1771920649474,-26657.44874385,0.000179,2]
[406533795,1771920649483,-3927.32910296,0.000179,2]
[406533796,1771920649491,-9579.65140379,0.000179,2]
[406533797,1771920649504,-151.0,0.000179,2]
[406533798,1771920649513,-747.43571158,0.000179,2]
[406533799,1771920649521,-217.15233878,0.00017928,2]
[406533800,1771920649531,-924.60877284,0.00017928,2]
[406533801,1771920649541,-1000.0,0.0001795,2]
[406533802,1771920649550,-1001.79575194,0.00017999,2]
[406533803,1771920649559,-500.0,0.00017999,2]
[406533804,1771920649567,-500.0,0.00017999,2]
[406533805,1771920649579,-500.0,0.00017999,2]
[406533806,1771920649588,-216.94847432,0.00017999,2]
[406533807,1771920649597,-512.1,0.00017999,2]
[406533808,1771920649607,-512.1,0.00017999,2]
[406533809,1771920649615,-512.1,0.00017999,2]
[406533810,1771920649625,-512.1,0.00017999,2]
[406533811,1771920649634,-512.1,0.00017999,2]
[406533812,1771920649643,-512.33,0.00017999,2]
[406533813,1771920649652,-300.0,0.00017999,2]
[406533814,1771920649661,-300.0,0.00017999,2]
[406533815,1771920649670,-150.0,0.00017999,2]
[406533816,1771920649830,-210.94677836,0.00017999,2]
[406533817,1771920649840,-799020.07872781,0.00018,2]
[406533818,1771920649849,-2842082.14002861,0.00018,2]
[406533819,1771920649857,-2644084.78310955,0.00018,2]
[406533820,1771920650213,-10450.21436821,0.00018,2]
[406533821,1771920650224,-2019.91513355,0.00018,2]
[406533822,1771920650403,-153.9371016,0.00018,2]
[406533823,1771920650417,-300.0,0.00018,2]
[406533824,1771920686963,500.0,0.00010978,2]
[406533825,1771920707433,5377.311424,0.00011009,2]
[406533826,1771920707457,10000.01,0.00011009,2]
[406533827,1771920707481,10000.01,0.00011009,2]
[406533828,1771920707507,10000.01,0.00011009,2]
[406533829,1771920707530,10000.01,0.00011009,2]
[406533830,1771920707554,10000.01,0.00011009,2]
[406533831,1771920707577,10000.01,0.00011009,2]
[406533832,1771920722582,-300.0,0.00011008,2]
[406533833,1771920722612,-150.0,0.00011008,2]
[406533834,1771920742585,264.37224728,0.00010978,2]
[406533835,1771920764318,374.38183678,0.00010911,2]
[406533836,1771920843400,500.0,0.00010909,2]
[406533837,1771920854333,291.5,0.00011,2]
[406533838,1771920874119,8569.75591594,0.00010909,2]
[406533839,1771920874140,1430.24408406,0.00010909,2]
[406533840,1771920874266,498.2904744,0.00010978,2]
[406533841,1771920894658,249.58789118,0.00010978,2]
[406533842,1771920911420,2945.49682722,0.00010978,2]
[406533843,1771921004536,332.1936496,0.00010978,2]
[406533844,1771921005956,500.0,0.00010908,2]
[406533845,1771921009023,6540.07463914,0.00010978,2]
[406533846,1771921009042,2159.10869976,0.00010978,2]
[406533847,1771921024984,166.39192746,0.00010978,2]
[406533848,1771921025643,17674.49937278,0.00010909,2]
[406533849,1771921025667,20000.0,0.00010909,2]
[406533850,1771921055711,-500.0,0.000108,2]
[406533851,1771921055737,-500.0,0.000108,2]
[406533852,1771921055763,-500.0,0.000108,2]
[406533853,1771921055790,-500.0,0.000108,2]
[406533854,1771921055815,-500.0,0.000108,2]
[406533855,1771921055840,-500.0,0.000108,2]
[406533856,1771921055871,-500.0,0.000108,2]
[406533857,1771921055898,-500.0,0.000108,2]
[406533858,1771921055926,-500.0,0.000108,2]
[406533859,1771921055955,-500.0,0.000108,2]
[406533860,1771921055987,-500.0,0.000108,2]
[406533861,1771921056016,-500.0,0.000108,2]